fUST/lending_fUST_20260107
["ID","MTS","AMOUNT","RATE_DAILY","PERIOD"]
[400625762,1767749443011,-2362.32,0.000269,7]
[400625763,1767749443021,-2300.0,0.00026904,7]
[400625764,1767749443030,-2296.51668751,0.00026944,24]
[400625765,1767749443039,-2300.0,0.0002697,7]
[400625766,1767749443048,-184.0,0.00027,7]
[400625767,1767749443058,-600.0,0.00027,14]
[400625768,1767749443067,-503.72461752,0.00027,2]
[400625769,1767749443077,-302781.61424461,0.00027,7]
[400625770,1767749443086,-1018.0,0.00027,2]
[400625771,1767749443095,-2300.0,0.00027183,7]
[400625772,1767749443104,-500.0,0.00027259,7]
[400625773,1767749443114,-2000.0,0.00027356,7]
[400625774,1767749443123,-7840.45558332,0.00027386,2]
[400625776,1767749443133,-1603.97,0.00027397,2]
[400625777,1767749443144,-650.0,0.00027397,5]
[400625779,1767749443153,-514.72943371,0.00027397,5]
[400625780,1767749443162,-20783.01,0.000274,2]
[400625781,1767749443173,-45930.20768051,0.000275,2]
[400625782,1767749443182,-1000.0,0.00027547,30]
[400625783,1767749443191,-1000.0,0.00027547,30]
[400625784,1767749443200,-579.0,0.00027547,30]
[400625785,1767749443209,-2300.0,0.0002758,7]
[400625786,1767749443220,-418.0,0.0002769,2]
[400625787,1767749443232,-1000.0,0.00027777,5]
[400625788,1767749443242,-2300.0,0.00027828,7]
[400625789,1767749443251,-2300.0,0.00027937,7]
[400625790,1767749443261,-750.0,0.00027945,5]
[400625792,1767749443271,-250.0,0.00027945,5]
[400625794,1767749443280,-250.0,0.00027945,5]
[400625796,1767749443289,-500.0,0.0002797,7]
[400625797,1767749443298,-15316.1684334,0.00028,2]
[400625798,1767749443307,-1041.66666667,0.00028,7]
[400625799,1767749443316,-519.93395126,0.00028,2]
[400625800,1767749443325,-1018.0,0.00028,2]
[400625801,1767749443335,-2000.0,0.00028021,7]
[400625802,1767749443344,-2300.0,0.00028092,7]
[400625803,1767749443353,-2300.0,0.00028172,7]
[400625804,1767749443362,-2575.99109306,0.00028392,27]
[400625805,1767749443371,-2300.0,0.00028445,7]
[400625806,1767749443380,-407.35317629,0.00028471,2]
[400625807,1767749443390,-850.0,0.00028493,5]
[400625808,1767749443399,-350.0,0.00028493,5]
[400625809,1767749443408,-350.0,0.00028493,5]
[400625810,1767749443419,-126244.76615567,0.000285,7]
[400625811,1767749443428,-157.0,0.00028575,30]
[400625812,1767749443437,-2000.0,0.00028687,7]
[400625813,1767749443447,-26867.53519307,0.0002876,2]
[400625814,1767749443455,-28358.47353222,0.0002876,20]
[400625815,1767749443465,-4000.0,0.0002876,5]
[400625816,1767749443475,-19132.26998272,0.0002876,2]
[400625817,1767749443484,-1603.97,0.00028767,4]
[400625818,1767749443494,-64233.12413057,0.000288,10]
[400625819,1767749443503,-1041.66666667,0.000288,10]
[400625820,1767749443514,-172.37105898,0.000288,7]
[400625821,1767749443524,-7840.45558332,0.00028804,2]
[400625822,1767749443533,-500.0,0.00028836,7]
[400625823,1767749443544,-4050.56005708,0.00028865,2]
[400625824,1767749443554,-58188.6395397,0.000289,7]
[400625825,1767749443659,-269.247383,0.000289,7]
[400625826,1767749443672,-4391.01861516,0.000289,7]
[400625827,1767749443684,-339.83814567,0.000289,7]
[400625866,1767749538724,1256.9,0.0003013,120]
[400625965,1767749963461,1081.115,0.00030137,120]
[400626089,1767750466938,5746.8795415,0.0003013,120]
[400626090,1767750564001,232.0,0.00030137,120]
[400626136,1767750638130,-300.0,0.00012998,2]
[400626137,1767750638141,-604.0,0.00012998,2]
[400626138,1767750638306,-151.52117963,0.00012999,2]
[400626139,1767750638323,-153.00814973,0.00012999,2]
[400626140,1767750638334,-6632.0,0.00012999,2]
[400626141,1767750638343,-163.58951952,0.00012999,2]
[400626142,1767750638352,-500.0,0.00012999,2]
[400626143,1767750638362,-152.01319872,0.00012999,2]
[400626144,1767750638373,-150.42185971,0.00012999,2]
[400626145,1767750638383,-500.0,0.00012999,2]
[400626146,1767750638392,-6632.0,0.00013136,2]
[400626147,1767750638402,-500.0,0.00013136,2]
[400626148,1767750638411,-158.82927589,0.00013136,2]
[400626149,1767750638421,-150.98426584,0.00013136,2]
[400626150,1767750638430,-151.6519779,0.00013136,2]
[400626151,1767750638439,-500.0,0.00013136,2]
[400626152,1767750638448,-163.99137218,0.00013155,2]
[400626153,1767750638457,-300.0,0.00013156,2]
[400626154,1767750638466,-300.0,0.00013156,2]
[400626155,1767750638475,-300.0,0.00013156,2]
[400626156,1767750638485,-300.0,0.00013156,2]
[400626157,1767750638494,-300.0,0.00013156,2]
[400626158,1767750638503,-300.0,0.00013156,2]
[400626159,1767750638512,-300.0,0.00013156,2]
[400626160,1767750638521,-300.0,0.00013156,2]
[400626161,1767750638530,-300.0,0.00013156,2]
[400626162,1767750638539,-300.0,0.00013156,2]
[400626163,1767750638548,-300.0,0.00013156,2]
[400626164,1767750638557,-300.0,0.00013156,2]
[400626165,1767750638566,-300.0,0.00013156,2]
[400626166,1767750638575,-300.0,0.00013156,2]
[400626167,1767750638584,-300.0,0.00013156,2]
[400626168,1767750638593,-600.0,0.00013156,2]
[400626169,1767750638602,-5965.99538284,0.00013173,2]
[400626170,1767750638611,-500.0,0.00013272,2]
[400626171,1767750638620,-207.63527274,0.00013272,2]
[400626172,1767750638629,-613.52650371,0.00013272,2]
[400626173,1767750638639,-548.68289203,0.00013272,2]
[400626175,1767750638648,-500.0,0.00013272,2]
[400626177,1767750638658,-518.50918508,0.00013272,2]
[400626178,1767750638667,-150.76888394,0.00013273,2]
[400626180,1767750638677,-500.90264467,0.00013273,2]
[400626182,1767750638686,-500.0,0.00013273,2]
[400626184,1767750638696,-165.55813366,0.00013273,2]
[400626186,1767750638706,-500.21650655,0.00013273,2]
[400626187,1767750638716,-500.60841517,0.00013273,2]
[400626189,1767750638726,-502.95005986,0.00013273,2]
[400626191,1767750638736,-501.03678255,0.00013273,2]
[400626193,1767750638746,-500.0,0.00013273,2]
[400626195,1767750638755,-500.0,0.00013273,2]
[400626197,1767750638764,-500.47551654,0.00013273,2]
[400626199,1767750638773,-500.57600194,0.00013273,2]
[400626201,1767750638783,-500.0,0.00013273,2]
[400626203,1767750638793,-500.45246138,0.00013273,2]
[400626205,1767750638803,-500.0,0.00013273,2]
[400626207,1767750638813,-500.90011274,0.00013273,2]
[400626209,1767750638822,-500.92868719,0.00013273,2]
[400626211,1767750638831,-500.24920647,0.00013273,2]
[400626213,1767750638841,-161.87597916,0.00013273,2]
[400626215,1767750638850,-501.14574237,0.00013273,2]
[400626217,1767750638860,-500.0,0.00013273,2]
[400626218,1767750638870,-500.0,0.00013273,2]
[400626221,1767750638879,-500.0,0.00013273,2]
[400626223,1767750638889,-500.0,0.00013273,2]
[400626225,1767750638899,-500.34622487,0.00013273,2]
[400626226,1767750638908,-500.0,0.00013273,2]
[400626229,1767750638919,-500.0,0.00013273,2]
[400626230,1767750638928,-500.60416551,0.00013273,2]
[400626232,1767750638937,-500.75871119,0.00013273,2]
[400626234,1767750638946,-500.27682463,0.00013273,2]
[400626236,1767750638956,-500.15579403,0.00013273,2]
[400626238,1767750638966,-500.32200799,0.00013273,2]
[400626240,1767750638976,-268.74839898,0.00013273,2]
[400626242,1767750638986,-500.0,0.00013273,2]
[400626244,1767750638995,-185.47886974,0.00013273,2]
[400626246,1767750639005,-232.45140117,0.00013273,2]
[400626248,1767750639014,-500.0,0.00013273,2]
[400626250,1767750639023,-500.0,0.00013273,2]
[400626252,1767750639033,-500.23751583,0.00013273,2]
[400626254,1767750639042,-500.0,0.00013273,2]
[400626256,1767750639052,-171.62399248,0.00013273,2]
[400626258,1767750639061,-500.68236052,0.00013273,2]
[400626260,1767750639070,-500.41385592,0.00013273,2]
[400626262,1767750639079,-500.53377419,0.00013273,2]
[400626264,1767750639088,-210.72007588,0.00013273,2]
[400626266,1767750639098,-500.13729411,0.00013273,2]
[400626268,1767750639108,-500.0,0.00013273,2]
[400626270,1767750639118,-500.54580306,0.00013273,2]
[400626272,1767750639127,-500.84398514,0.00013273,2]
[400626274,1767750639139,-500.05264698,0.00013273,2]
[400626276,1767750639150,-500.0,0.00013273,2]
[400626278,1767750639159,-500.0,0.00013273,2]
[400626280,1767750639169,-159.35129287,0.00013273,2]
[400626282,1767750639180,-500.0,0.00013273,2]
[400626284,1767750639191,-283.41029146,0.00013273,2]
[400626286,1767750639200,-500.20185044,0.00013273,2]
[400626288,1767750639212,-606.23003046,0.00013273,2]
[400626290,1767750639222,-536.54826057,0.00013273,2]
[400626292,1767750639231,-501.03448136,0.00013273,2]
[400626294,1767750639240,-6632.0,0.00013273,2]
[400626296,1767750639249,-500.0,0.00013273,2]
[400626298,1767750639259,-151.13973478,0.00013273,2]
[400626300,1767750639268,-152.52802845,0.00013273,2]
[400626302,1767750639278,-153.82967667,0.00013273,2]
[400626304,1767750639288,-295.12568369,0.00013273,2]
[400626306,1767750639298,-226.095,0.00013327,2]
[400626308,1767750639308,-6632.0,0.0001341,2]
[400626311,1767750639321,-574.45512564,0.0001341,2]
[400626313,1767750639330,-168.38101807,0.0001341,2]
[400626315,1767750639340,-150.43184935,0.0001341,2]
[400626317,1767750639350,-1379.70703681,0.00013412,2]
[400626319,1767750639360,-6632.0,0.00013547,2]
[400626321,1767750639370,-201.31343254,0.00013547,2]
[400626323,1767750639381,-3243.31871033,0.00013573,2]
[400626324,1767750639391,-500.0,0.00013598,2]
[400626327,1767750639401,-500.0,0.00013598,2]
[400626328,1767750639411,-210.99783641,0.00013598,2]
[400626330,1767750639420,-500.0,0.00013598,2]
[400626332,1767750639430,-500.0,0.00013598,2]
[400626335,1767750639439,-500.0,0.00013598,2]
[400626337,1767750639449,-500.0,0.00013598,2]
[400626339,1767750639460,-500.0,0.00013598,2]
[400626342,1767750639469,-500.0,0.00013598,2]
[400626344,1767750639479,-500.0,0.00013598,2]
[400626346,1767750639488,-500.0,0.00013598,2]
[400626349,1767750639497,-500.0,0.00013598,2]
[400626351,1767750639507,-500.0,0.00013598,2]
[400626353,1767750639516,-500.0,0.00013598,2]
[400626355,1767750639525,-226.42880177,0.00013598,2]
[400626356,1767750639535,-500.0,0.00013598,2]
[400626358,1767750639544,-500.0,0.00013598,2]
[400626360,1767750639553,-500.0,0.00013598,2]
[400626362,1767750639564,-500.0,0.00013598,2]
[400626364,1767750639573,-350.0,0.00013598,2]
[400626366,1767750639582,-1000000.0,0.00013599,2]
[400626368,1767750639593,-300.0,0.00013673,2]
[400626370,1767750639604,-6632.0,0.00013684,2]
[400626373,1767750639613,-3789.85908236,0.0001369,2]
[400626375,1767750639624,-517.90864464,0.00013698,2]
[400626376,1767750639633,-526.8409524,0.00013698,2]
[400626378,1767750639643,-608.88270022,0.00013698,2]
[400626381,1767750639652,-580.75182676,0.00013698,2]
[400626382,1767750639661,-500.0,0.00013698,2]
[400626384,1767750639671,-500.0,0.00013698,2]
[400626386,1767750639681,-365.68676365,0.00013698,2]
[400626389,1767750639692,-468.24381758,0.00013698,2]
[400626390,1767750639702,-5000.0,0.00013699,2]
[400626392,1767750639712,-5000.0,0.00013699,2]
[400626395,1767750639721,-4731.0,0.00013699,2]
[400626397,1767750639731,-2934.812521,0.00013699,2]
[400626398,1767750639740,-504.92631464,0.00013699,2]
[400626400,1767750639749,-502.60955562,0.00013699,2]
[400626402,1767750639758,-500.95078521,0.00013699,2]
[400626404,1767750639767,-500.0,0.00013699,2]
[400626406,1767750639776,-500.0,0.00013699,2]
[400626408,1767750639786,-501.06381696,0.00013699,2]
[400626410,1767750639795,-501.23252156,0.00013699,2]
[400626413,1767750639804,-500.0,0.00013699,2]
[400626415,1767750639814,-501.10000041,0.00013699,2]
[400626416,1767750639823,-500.0,0.00013699,2]
[400626418,1767750639833,-500.6520832,0.00013699,2]
[400626420,1767750639843,-501.00925521,0.00013699,2]
[400626422,1767750639853,-500.0,0.00013699,2]
[400626424,1767750639862,-500.57015912,0.00013699,2]
[400626426,1767750639872,-500.0,0.00013699,2]
[400626428,1767750639881,-500.67672674,0.00013699,2]
[400626431,1767750639890,-500.60543176,0.00013699,2]
[400626433,1767750639900,-500.0,0.00013699,2]
[400626435,1767750639909,-500.65315035,0.00013699,2]
[400626436,1767750639919,-500.71592761,0.00013699,2]
[400626438,1767750639928,-501.09252862,0.00013699,2]
[400626440,1767750639937,-500.0,0.00013699,2]
[400626442,1767750639947,-500.0,0.00013699,2]
[400626444,1767750639956,-500.0,0.00013699,2]
[400626446,1767750639966,-634.55118999,0.00013699,2]
[400626448,1767750639975,-500.0,0.00013699,2]
[400626451,1767750639984,-500.0,0.00013699,2]
[400626453,1767750639994,-500.0,0.00013699,2]
[400626454,1767750640004,-541.13241384,0.00013699,2]
[400626457,1767750640013,-526.20887462,0.00013699,2]
[400626458,1767750640022,-500.98142921,0.00013699,2]
[400626460,1767750640031,-500.0,0.00013699,2]
[400626463,1767750640040,-501.92287951,0.00013699,2]
[400626465,1767750640049,-343.74196572,0.00013699,2]
[400626467,1767750640058,-500.50311115,0.00013699,2]
[400626469,1767750640067,-501.41020298,0.00013699,2]
[400626471,1767750640076,-501.03774756,0.00013699,2]
[400626473,1767750640086,-500.0,0.00013699,2]
[400626475,1767750640095,-500.0,0.00013699,2]
[400626477,1767750640104,-500.34331058,0.00013699,2]
[400626479,1767750640113,-501.3821725,0.00013699,2]
[400626481,1767750640122,-500.0,0.00013699,2]
[400626483,1767750640133,-254.37750889,0.00013699,2]
[400626485,1767750640141,-500.0,0.00013699,2]
[400626487,1767750640154,-500.0,0.00013699,2]
[400626489,1767750640164,-500.0,0.00013699,2]
[400626491,1767750640175,-500.0,0.00013699,2]
[400626493,1767750640185,-500.0,0.00013699,2]
[400626495,1767750640195,-500.52586648,0.00013699,2]
[400626497,1767750640205,-500.0,0.00013699,2]
[400626500,1767750640218,-500.0,0.00013699,2]
[400626502,1767750640228,-354.67764119,0.00013699,2]
[400626504,1767750640238,-1000.0,0.000138,2]
[400626506,1767750640247,-1000.0,0.000138,3]
[400626508,1767750640257,-1000.0,0.000138,4]
[400626510,1767750640266,-1000.0,0.00013821,2]
[400626512,1767750640277,-1000.0,0.00013821,2]
[400626514,1767750640286,-1106.51175795,0.00013821,2]
[400626516,1767750640295,-501.23183801,0.00013821,2]
[400626518,1767750640304,-1000.0,0.00013821,2]
[400626520,1767750640314,-1003.09729477,0.00013821,2]
[400626522,1767750640323,-1000.0,0.00013821,2]
[400626524,1767750640334,-1000.0,0.00013821,2]
[400626526,1767750640343,-363.56348845,0.00013821,2]
[400626528,1767750640352,-1000.0,0.00013821,2]
[400626530,1767750640362,-1000.0,0.00013821,2]
[400626532,1767750640371,-406.60746944,0.00013821,2]
[400626534,1767750640380,-1000.0,0.00013821,2]
[400626536,1767750640389,-326.04586096,0.00013821,2]
[400626538,1767750640398,-276.65740012,0.00013821,2]
[400626540,1767750640407,-1000.0,0.00013821,2]
[400626542,1767750640417,-1000.0,0.00013821,2]
[400626544,1767750640426,-1000.0,0.00013821,2]
[400626546,1767750640436,-6632.0,0.00013821,2]
[400626547,1767750640445,-15000.0,0.0001386,2]
[400626550,1767750640455,-6632.0,0.00013958,2]
[400626552,1767750640465,-163.63739689,0.00013973,2]
[400626554,1767750640474,-6632.0,0.00014095,2]
[400626556,1767750640483,-213.88982088,0.00014175,2]
[400626558,1767750640493,-600.0,0.00014221,2]
[400626560,1767750640502,-6632.0,0.00014232,2]
[400626562,1767750640511,-604.53849055,0.00014247,2]
[400626563,1767750640520,-503.40501674,0.00014247,2]
[400626565,1767750640529,-1001.02357082,0.00014247,2]
[400626567,1767750640539,-496.42380505,0.00014247,2]
[400626568,1767750640548,-505.030945,0.00014247,2]
[400626570,1767750640557,-1000.86951473,0.00014247,2]
[400626572,1767750640567,-502.68569232,0.00014247,2]
[400626573,1767750640575,-521.0726747,0.00014247,2]
[400626575,1767750640585,-501.46649931,0.00014247,2]
[400626577,1767750640594,-501.69159109,0.00014247,2]
[400626578,1767750640603,-500.84993331,0.00014247,2]
[400626580,1767750640612,-1000.0,0.00014247,2]
[400626582,1767750640621,-581.48417427,0.00014247,2]
[400626583,1767750640630,-501.63634605,0.00014247,2]
[400626585,1767750640640,-1000.0,0.00014247,2]
[400626587,1767750640649,-502.36130681,0.00014247,2]
[400626589,1767750640660,-1000.0,0.00014247,2]
[400626591,1767750640670,-501.31746086,0.00014247,2]
[400626592,1767750640679,-500.77494187,0.00014247,2]
[400626594,1767750640688,-1000.0,0.00014247,2]
[400626596,1767750640698,-1000.0,0.00014247,2]
[400626597,1767750640706,-501.01375621,0.00014247,2]
[400626599,1767750640716,-500.58789484,0.00014247,2]
[400626601,1767750640725,-420.0,0.00014255,2]
[400626602,1767750640735,-1500.0,0.00014368,2]
[400626604,1767750640744,-905.34447423,0.00014368,2]
[400626606,1767750640753,-1001.68152769,0.00014368,2]
[400626607,1767750640762,-1500.0,0.00014368,2]
[400626609,1767750640771,-1504.1691279,0.00014368,2]
[400626611,1767750640780,-1102.80659709,0.00014368,2]
[400626612,1767750640788,-501.32223467,0.00014368,2]
[400626614,1767750640798,-1500.0,0.00014368,2]
[400626616,1767750640807,-1500.0,0.00014368,2]
[400626618,1767750640816,-1002.57274863,0.00014368,2]
[400626619,1767750640825,-700.10829914,0.00014368,2]
[400626621,1767750640833,-6632.0,0.00014369,2]
[400626623,1767750640843,-720.0,0.00014472,2]
[400626624,1767750640852,-6632.0,0.00014506,2]
[400626626,1767750640861,-322.87757844,0.0001456,2]
[400626628,1767750640869,-6632.0,0.00014643,2]
[400626630,1767750640878,-730.94744985,0.00014768,2]
[400626631,1767750640887,-6632.0,0.0001478,2]
[400626633,1767750640896,-536.0817211,0.00014795,2]
[400626635,1767750640906,-1500.0,0.00014795,2]
[400626636,1767750640915,-1500.0,0.00014795,2]
[400626638,1767750640924,-1500.0,0.00014795,2]
[400626640,1767750640933,-1500.0,0.00014795,2]
[400626642,1767750640942,-1000.0,0.000148,5]
[400626644,1767750640951,-504.86927313,0.00014916,2]
[400626645,1767750640960,-2000.0,0.00014916,2]
[400626655,1767750641073,-2000.0,0.00014916,2]
[400626657,1767750641083,-2000.0,0.00014916,2]
[400626659,1767750641092,-6632.0,0.00014917,2]
[400626661,1767750641102,-1000.0,0.00015,2]
[400626663,1767750641111,-100000.0,0.00015028,2]
[400626664,1767750641119,-6632.0,0.00015054,2]
[400626666,1767750641128,-240.213887,0.00015068,2]
[400626668,1767750641141,-193.50981917,0.00015155,2]
[400626670,1767750641150,-6632.0,0.00015191,2]
[400626671,1767750641159,-6632.0,0.00015328,2]
[400626673,1767750641169,-2000.0,0.00015342,2]
[400626675,1767750641179,-2000.0,0.00015342,2]
[400626677,1767750641188,-2000.0,0.00015342,2]
[400626679,1767750641197,-2000.0,0.00015342,2]
[400626680,1767750641207,-544.31907515,0.00015464,2]
[400626682,1767750641217,-2500.0,0.00015464,2]
[400626684,1767750641227,-2500.0,0.00015464,2]
[400626686,1767750641236,-6632.0,0.00015465,2]
[400626687,1767750641244,-6632.0,0.00015602,2]
[400626689,1767750641253,-587.0,0.00015632,2]
[400626691,1767750641262,-500.0,0.00015712,2]
[400626693,1767750641272,-500.0,0.00015712,2]
[400626695,1767750641281,-500.0,0.00015712,2]
[400626696,1767750641290,-500.0,0.00015712,2]
[400626698,1767750641299,-500.0,0.00015712,2]
[400626700,1767750641308,-500.0,0.00015712,2]
[400626702,1767750641318,-500.0,0.00015712,2]
[400626704,1767750641326,-500.0,0.00015712,2]
[400626705,1767750641335,-500.0,0.00015712,2]
[400626707,1767750641344,-500.0,0.00015712,2]
[400626709,1767750641353,-500.0,0.00015712,2]
[400626710,1767750641362,-500.0,0.00015712,2]
[400626712,1767750641371,-500.0,0.00015712,2]
[400626714,1767750641381,-500.0,0.00015712,2]
[400626716,1767750641390,-6632.0,0.00015739,2]
[400626718,1767750641400,-1000.0,0.000158,6]
[400626719,1767750641409,-6632.0,0.00015876,2]
[400626721,1767750641417,-2500.0,0.0001589,2]
[400626723,1767750641426,-2500.0,0.0001589,2]
[400626725,1767750641435,-2500.0,0.0001589,2]
[400626726,1767750641444,-2500.0,0.0001589,2]
[400626728,1767750641453,-426.37,0.00015912,2]
[400626730,1767750641462,-864.0,0.00015919,2]
[400626732,1767750641471,-15000.0,0.00015939,2]
[400626733,1767750641479,-459.4724937,0.00015985,4]
[400626735,1767750641488,-3000.0,0.00016012,2]
[400626737,1767750641497,-3000.0,0.00016012,2]
[400626739,1767750641506,-6632.0,0.00016013,2]
[400626740,1767750641515,-6648.96789867,0.0001615,2]
[400626742,1767750641524,-7009.7102619,0.0001621,2]
[400626744,1767750641533,-3243.31871031,0.00016385,2]
[400626746,1767750641542,-3000.0,0.00016438,2]
[400626748,1767750641551,-3000.0,0.00016438,2]
[400626750,1767750641560,-3000.0,0.00016438,2]
[400626751,1767750641569,-3000.0,0.00016438,2]
[400626753,1767750641578,-200.13900303,0.00016473,2]
[400626755,1767750641588,-3500.0,0.0001656,2]
[400626757,1767750641597,-3500.0,0.0001656,2]
[400626758,1767750641606,-5965.99538281,0.00016623,2]
[400626760,1767750641615,-3500.0,0.00016986,2]
[400626762,1767750641625,-3500.0,0.00016986,2]
[400626764,1767750641634,-3500.0,0.00016986,2]
[400626766,1767750641648,-2699.36048801,0.00016986,2]
[400626768,1767750641657,-4000.0,0.00017108,2]
[400626769,1767750641667,-4000.0,0.00017108,2]
[400626771,1767750641676,-823.0,0.00017144,2]
[400626773,1767750641686,-223.02826616,0.00017155,2]
[400626775,1767750641695,-250.0,0.00017175,2]
[400626777,1767750641703,-617.78433117,0.00017409,6]
[400626778,1767750641712,-1000.0,0.00017511,2]
[400626780,1767750641721,-1013.03173422,0.00017534,2]
[400626782,1767750641731,-4000.0,0.00017534,2]
[400626784,1767750641740,-4000.0,0.00017534,2]
[400626785,1767750641749,-4500.0,0.00017656,2]
[400626787,1767750641758,-2518.7274586,0.00017656,2]
[400626789,1767750641767,-1041.66666667,0.00017688,2]
[400626791,1767750641777,-4023.87949745,0.00018082,2]
[400626793,1767750641785,-4311.15223911,0.00018082,2]
[400626794,1767750641795,-2896.7176939,0.00018204,2]
[400626796,1767750641804,-240.213887,0.00018493,2]
[400626798,1767750641813,-239.80377515,0.00018712,3]
[400626800,1767750641823,-1152.0,0.00018801,2]
[400626801,1767750641832,-794.49186454,0.00018834,9]
[400626803,1767750641842,-252.54671315,0.00019155,2]
[400626805,1767750641851,-900.0,0.00019178,2]
[400626807,1767750641859,-3243.31871031,0.00019196,2]
[400626809,1767750641868,-1000.0,0.00019262,2]
[400626810,1767750641877,-244.0,0.00019262,2]
[400626812,1767750641887,-18711.41,0.000193,2]
[400626814,1767750641896,-240.42,0.000193,2]
[400626816,1767750641904,-196.01,0.000193,2]
[400626818,1767750641913,-167.95,0.000193,2]
[400626819,1767750641922,-2092.97,0.000193,2]
[400626821,1767750641931,-649.43158012,0.00019726,2]
[400626823,1767750641940,-418.4,0.00019731,2]
[400626825,1767750641949,-1000.0,0.000198,7]
[400626827,1767750641958,-205.02791284,0.0002,7]
[400626828,1767750641968,-937.0,0.0002,2]
[400626830,1767750641977,-181.25348447,0.0002,2]
[400626832,1767750641987,-5965.99538281,0.00020073,2]
[400626834,1767750641995,-987.39247614,0.00020258,12]
[400626836,1767750642005,-195.15,0.00020504,2]
[400626837,1767750642014,-2934.812521,0.00020548,2]
[400626839,1767750642024,-1257.0,0.00020618,2]
[400626841,1767750642033,-447.9702652,0.00021087,2]
[400626843,1767750642042,-282.06516014,0.00021155,2]
[400626845,1767750642051,-1000.0,0.00021188,10]
[400626846,1767750642060,-492.0,0.00021188,10]
[400626848,1767750642069,-418.4,0.00021342,2]
[400626850,1767750642079,-191.0,0.00021452,4]
[400626852,1767750642088,-1194.89067887,0.00021682,14]
[400626854,1767750642097,-240.213887,0.00021918,2]
[400626855,1767750642106,-3243.31871031,0.00022008,2]
[400626857,1767750642115,-300.0,0.00022466,2]
[400626859,1767750642125,-2625.47,0.000225,7]
[400626861,1767750642134,-565.35,0.000229,2]
[400626862,1767750642144,-418.4,0.00022954,2]
[400626864,1767750642154,-450.0,0.00023014,2]
[400626866,1767750642163,-1415.76379922,0.00023107,17]
[400626868,1767750642173,-311.58360713,0.00023155,2]
[400626870,1767750642182,-500.0,0.00023191,2]
[400626871,1767750642192,-280.28268334,0.00023244,2]
[400626873,1767750642202,-2300.0,0.00023302,2]
[400626875,1767750642211,-1000.0,0.00023307,10]
[400626877,1767750642222,-791.0,0.00023307,10]
[400626879,1767750642231,-500.0,0.00023368,2]
[400626880,1767750642240,-195.15,0.00023423,2]
[400626882,1767750642249,-18711.41,0.000235,2]
[400626884,1767750642259,-240.42,0.000235,7]
[400626886,1767750642268,-196.01,0.000235,7]
[400626888,1767750642281,-2092.97,0.000235,14]
[400626890,1767750642293,-5965.99538281,0.00023523,2]
[400626892,1767750642306,-500.0,0.00023528,2]
[400626894,1767750642319,-600.0,0.00023562,2]
[400626896,1767750642331,-2300.0,0.00023623,2]
[400626898,1767750642341,-500.0,0.00023871,2]
[400626900,1767750642353,-2300.0,0.00023879,2]
[400626902,1767750642365,-2300.0,0.00023964,2]
[400626904,1767750642377,-1020.52354742,0.00024,2]
[400626906,1767750642389,-2300.0,0.00024034,2]
[400626908,1767750642403,-433.77711538,0.00024106,2]
[400626910,1767750642416,-211.74038418,0.00024106,2]
[400626912,1767750642428,-216.88855768,0.00024106,2]
[400626914,1767750642439,-750.0,0.0002411,2]
[400626916,1767750642452,-24160.18408481,0.00024172,2]
[400626918,1767750642465,-156.0,0.00024192,12]
[400626920,1767750642477,-433.77711538,0.00024251,9]
[400626922,1767750642488,-211.74038418,0.00024251,9]
[400626924,1767750642499,-2000.0,0.00024356,7]
[400626926,1767750642511,-211.74038418,0.00024396,17]
[400626928,1767750642522,-433.77711538,0.00024396,17]
[400626930,1767750642533,-7842.6243808,0.00024441,2]
[400626932,1767750642545,-1649.03729637,0.00024531,20]
[400626936,1767750642557,-500.0,0.00024532,2]